fUST/lending_fUST_20240423
["ID","MTS","AMOUNT","RATE_DAILY","PERIOD"]
[323204116,1713805845133,-1720.82,0.00027671,7]
[323204117,1713805845141,-1154.18,0.00027671,7]
[323204118,1713805845150,-1193.28,0.00027671,7]
[323204119,1713805845159,-500.0,0.00027671,7]
[323204120,1713805845167,-2916.66,0.00027671,7]
[323204121,1713805845176,-1095.36,0.00027671,7]
[323204122,1713805845185,-544.89,0.00027671,7]
[323204123,1713805845194,-703.46,0.00027671,7]
[323204124,1713805845203,-1078.17,0.00027671,7]
[323204125,1713805845212,-981.02,0.00027671,7]
[323204126,1713805845221,-809.51,0.00027671,7]
[323204127,1713805845231,-624.08,0.00027671,7]
[323204128,1713805845242,-946.61,0.00027945,7]
[323204129,1713805845251,-558.74,0.00027945,2]
[323204130,1713805845261,-949.86,0.00027945,7]
[323204131,1713805845270,-614.29,0.00027945,7]
[323204132,1713805845280,-524.91,0.00027945,7]
[323204133,1713805845290,-833.37,0.00027945,7]
[323204134,1713805845299,-671.69,0.00027945,7]
[323204135,1713805845310,-803.75,0.00027945,7]
[323204136,1713805845321,-595.78,0.00027945,7]
[323204137,1713805845330,-506.65,0.00027945,7]
[323204138,1713805845339,-670.45,0.00027945,7]
[323204139,1713805845348,-1720.82,0.00027945,7]
[323204140,1713805845357,-1154.18,0.00027945,7]
[323204141,1713805845366,-1193.28,0.00027945,7]
[323204142,1713805845375,-456.27518623,0.00027945,7]
[323204143,1713805845384,-2916.66,0.00027945,7]
[323204145,1713805845393,-544.89,0.00027945,7]
[323204146,1713805845402,-1095.36,0.00027945,7]
[323204147,1713805845412,-703.46,0.00027945,7]
[323204148,1713805845421,-1078.17,0.00027945,7]
[323204149,1713805845430,-981.02,0.00027945,7]
[323204150,1713805845440,-809.51,0.00027945,7]
[323204152,1713805845449,-624.08,0.00027945,7]
[323204153,1713805845459,-423.74027797,0.00028,2]
[323204154,1713805845469,-500.0,0.00028,2]
[323204155,1713805845478,-504.54595909,0.00028,2]
[323204156,1713805845487,-166.666666,0.00028038,2]
[323204157,1713805845496,-946.62,0.00028219,7]
[323204158,1713805845505,-558.77983663,0.00028219,2]
[323204159,1713805845514,-950.05136193,0.00028219,7]
[323204160,1713805845523,-614.37644153,0.00028219,7]
[323204161,1713805845532,-524.98570862,0.00028219,7]
[323204162,1713805845541,-833.43704287,0.00028219,7]
[323204163,1713805845551,-671.86446585,0.00028219,7]
[323204164,1713805845561,-803.85,0.00028219,7]
[323204165,1713805845570,-595.81,0.00028219,7]
[323204166,1713805845579,-506.86334073,0.00028219,7]
[323204167,1713805845588,-670.5627863,0.00028219,7]
[323204168,1713805845597,-1720.98595357,0.00028219,7]
[323204169,1713805845606,-1154.36,0.00028219,7]
[323204170,1713805845616,-1193.47015061,0.00028219,7]
[323204171,1713805845625,-2916.82,0.00028219,7]
[323204172,1713805845634,-545.07880235,0.00028219,7]
[323204173,1713805845643,-1095.59452897,0.00028219,7]
[323204174,1713805845652,-703.51,0.00028219,7]
[323204175,1713805845661,-1078.3744619,0.00028219,7]
[323204176,1713805845670,-981.20866882,0.00028219,7]
[323204177,1713805845680,-809.5819685,0.00028219,7]
[323204178,1713805845689,-624.15545466,0.00028219,7]
[323204179,1713805845698,-166.666666,0.00028679,2]
[323204180,1713805845707,-166.666666,0.00029321,2]
[323204181,1713805845716,-1613.0,0.00029806,2]
[323204182,1713805845726,-166.666666,0.00029962,2]
[323204183,1713805845843,-154.86062544,0.0003,4]
[323204184,1713805845853,-320.898431,0.0003,30]
[323204185,1713805845862,-154.86062544,0.0003,4]
[323204186,1713805845871,-166.666666,0.0003,2]
[323204187,1713805845881,-259.0,0.0003,2]
[323204188,1713805845890,-166.666666,0.00030603,2]
[323204189,1713805845900,-276.92563924,0.00031644,4]
[323204190,1713805845909,-276.92563924,0.00031644,4]
[323204191,1713805845919,-191.40398273,0.00032,4]
[323204192,1713805845928,-2258.0,0.00032786,2]
[323204193,1713805845937,-259.0,0.00033,2]
[323204194,1713805845947,-637.5,0.00033165,2]
[323204195,1713805845956,-465.92917544,0.00034,4]
[323204196,1713805845966,-385.89336969,0.00035,4]
[323204197,1713805845975,-6375.23458261,0.00035,4]
[323204198,1713805845984,-6882.79997042,0.00035,4]
[323204199,1713805845993,-1536.44315538,0.00035,2]
[323204200,1713805846007,-3202.867377,0.00035616,120]
[323204201,1713805846016,-154.86062544,0.0003589,2]
[323204202,1713805846025,-1353.35182827,0.0003599,4]
[323204203,1713805846035,-259.0,0.00036,2]
[323204204,1713805846045,-3162.0,0.00036065,2]
[323204205,1713805846055,-648.0,0.00036164,5]
[323204207,1713805846065,-3509.78351786,0.00037,2]
[323204208,1713805846075,-1101.74902505,0.0003707,31]
[323204209,1713805846084,-3000.0,0.000375,32]
[323204210,1713805846093,-3000.0,0.0003751,32]
[323204211,1713805846102,-3000.0,0.0003752,32]
[323204212,1713805846112,-3000.0,0.0003753,32]
[323204213,1713805846121,-3000.0,0.0003754,32]
[323204214,1713805846130,-3000.0,0.0003755,32]
[323204215,1713805846139,-3000.0,0.0003756,32]
[323204216,1713805846149,-5906.861186,0.0003757,32]
[323204217,1713805846158,-858.0,0.00038067,5]
[323204218,1713805846167,-637.5,0.00038933,2]
[323204219,1713805846177,-168.75,0.00039574,2]
[323204220,1713805846186,-154.86062544,0.00039589,4]
[323204221,1713805846196,-512.0,0.00039671,3]
[323204222,1713805846205,-337.78822849,0.00039987,4]
[323204223,1713805846214,-233.5797442,0.00039987,4]
[323204224,1713805846223,-1071.24336593,0.00039989,4]
[323204225,1713805846233,-569.58954947,0.00039989,7]
[323204226,1713805846245,-14000.57145454,0.00039989,2]
[323204227,1713805846254,-158.0083576,0.00039989,30]
[323204228,1713805846263,-154.86062544,0.00039989,15]
[323204229,1713805846273,-1451.48248425,0.00039989,4]
[323204230,1713805846283,-1000.0,0.00039989,2]
[323204231,1713805846292,-191.24260819,0.00039989,4]
[323204232,1713805846301,-1492.7918435,0.0004,7]
[323204233,1713805846312,-858.0,0.00040071,5]
[323204234,1713805846324,-3202.867377,0.00041553,120]
[323204235,1713805846334,-6168.0,0.0004198,10]
[323204236,1713805846344,-6168.0,0.0004198,10]
[323204237,1713805846353,-6168.0,0.0004198,10]
[323204238,1713805846362,-6168.0,0.0004198,10]
[323204239,1713805846371,-2487.24,0.0004198,10]
[323204240,1713805846380,-153.39334631,0.00042104,60]
[323204241,1713805846390,-208805.94436256,0.00042105,30]
[323204242,1713805846399,-858.0,0.0004218,30]
[323204243,1713805846408,-1116.55378927,0.000424,120]
[323204244,1713805846418,-10000.0,0.000425,50]
[323204245,1713805846427,-150.0,0.00043104,60]
[323204246,1713805846436,-510.78087478,0.00043835,120]
[323204247,1713805846445,-201.82400002,0.00043909,2]
[323204248,1713805846455,-3097.19276176,0.00043951,30]
[323204249,1713805846464,-2844.65760739,0.00044387,4]
[323204250,1713805846474,-150.0,0.00044394,60]
[323204251,1713805846483,-243.72205112,0.00044397,30]
[323204252,1713805846493,-150.0,0.00044397,30]
[323204253,1713805846502,-18838.34994654,0.00044398,4]
[323204254,1713805846512,-881045.9043555,0.000444,2]
[323204255,1713805846521,-3057.42722378,0.000444,4]
[323204256,1713805846530,-858.0,0.000444,30]
[323204257,1713805846540,-222.55265431,0.00044699,20]
[323204258,1713805846549,-637.5,0.00044701,2]
[323204259,1713805846559,-229.0,0.00044747,35]
[323204260,1713805846569,-229.0,0.00044757,35]
[323204261,1713805846578,-229.0,0.00044767,35]
[323204262,1713805846588,-23128.0,0.00044777,120]
[323204263,1713805846598,-2000.0,0.000449,120]
[323204264,1713805846610,-66817.64701472,0.00044999,10]
[323204265,1713805846620,-219.22904821,0.00044999,120]
[323204266,1713805846631,-2256.0,0.00045,2]
[323204267,1713805846640,-816.42014589,0.00045,20]
[323204268,1713805846650,-418.18083097,0.00045,120]
[323204269,1713805846659,-2690.14344575,0.00045,120]
[323204270,1713805846669,-45682.89213508,0.00045,10]
[323204271,1713805846678,-611985.3522,0.00045,2]
[323204272,1713805846687,-151.0,0.00045,7]
[323204273,1713805846697,-150.0,0.00045394,60]
[323204274,1713805846706,-106708.77708141,0.000456,30]
[323204275,1713805846714,-29748.68909127,0.000456,30]
[323204276,1713805846724,-20000.0,0.00045788,120]
[323204277,1713805846733,-154.93802479,0.000459,4]
[323204278,1713805846743,-10000.0,0.00045989,10]
[323204279,1713805846753,-5102.58704562,0.00045989,2]
[323204280,1713805846762,-1000.0,0.00046,120]
[323204281,1713805846771,-2205.57,0.00046094,6]
[323204282,1713805846781,-150.0,0.00046394,60]
[323204283,1713805846791,-858.0,0.0004662,30]
[323204284,1713805846801,-97444.52101211,0.0004698,120]
[323204285,1713805846811,-20414.10755061,0.00047,4]
[323204286,1713805846820,-50000.0,0.00047,30]
[323204287,1713805846829,-30000.0,0.00047,30]
[323204288,1713805846839,-652.721683,0.00047056,120]
[323204289,1713805846848,-150.0,0.00047394,60]
[323204290,1713805846857,-3202.867377,0.00047489,120]
[323204291,1713805846866,-1963.33416847,0.0004788,30]
[323204292,1713805846876,-20030.0,0.00047888,120]
[323204293,1713805846885,-171.03388591,0.000479,30]
[323204294,1713805846941,-828.96611409,0.000479,30]
[323204295,1713805846951,-4830.93012303,0.000479,30]
[323204296,1713805847292,-0.8969877,0.00019699,2]
[323204297,1713805847304,-418.49808725,0.00019699,2]
[323204298,1713805847315,-1620.16401568,0.00021916,2]
[323204299,1713805847326,-670.87,0.00023561,2]
[323204300,1713805847335,-670.87,0.00023835,2]
[323204301,1713805847345,-39171.46,0.00035616,3]
[323204302,1713805847354,-27852.78517807,0.000479,30]
[323204303,1713805847364,-1567.42728263,0.00048,2]
[323204304,1713805847373,-1000.0,0.00048,120]
[323204305,1713805847382,-200.0,0.00048,120]
[323204306,1713805847392,-5000.0,0.00048,10]
[323204307,1713805847401,-31318.19024653,0.00048,120]
[323204404,1713807038398,-272.52388449,0.00018703,2]
[323204406,1713807038408,-154.84515485,0.00018703,2]
[323204408,1713807038418,-7865.45010346,0.00018703,2]
[323204409,1713807038427,-459.645754,0.00018704,2]
[323204411,1713807038436,-596.73090927,0.00018704,2]
[323204413,1713807038445,-603.23240406,0.00018704,2]
[323204415,1713807038455,-1089.85834292,0.00018704,2]
[323204417,1713807038464,-154.84515485,0.00018705,2]
[323204419,1713807038474,-154.84515485,0.00018705,2]
[323204421,1713807038483,-154.84515485,0.00018705,2]
[323204423,1713807038492,-526.24173161,0.00018705,2]
[323204425,1713807038502,-701.81456509,0.00018706,2]
[323204427,1713807038511,-72546.85153724,0.00018706,2]
[323204429,1713807038520,-300.0,0.00018706,2]
[323204431,1713807038529,-300.0,0.00018706,2]
[323204433,1713807038539,-24900.0,0.00018708,2]
[323204435,1713807038548,-404.75067265,0.00019178,2]
[323204437,1713807038559,-397.54197612,0.00019493,2]
[323204439,1713807038568,-1302.32548829,0.00019778,2]
[323204441,1713807038577,-319.6542586,0.0002,2]
[323204443,1713807038586,-2844.65760739,0.0002,2]
[323204445,1713807038596,-200.0,0.0002,2]
[323204447,1713807038605,-154.86062544,0.0002,2]
[323204448,1713807038618,-282.8021152,0.0002,4]
[323204450,1713807038627,-677.92303889,0.0002,2]
[323204452,1713807038636,-500.0,0.00020369,2]
[323204453,1713807038646,-496.65821621,0.00020369,2]
[323204455,1713807038656,-500.0,0.00020369,2]
[323204457,1713807038665,-269.18705409,0.00020369,2]
[323204459,1713807038673,-257.35755345,0.00020369,2]
[323204461,1713807038682,-363.88699672,0.00020369,2]
[323204463,1713807038691,-5458.5886175,0.0002037,2]
[323204465,1713807038700,-689.33608369,0.00020371,2]
[323204466,1713807038709,-354.73903456,0.00020372,2]
[323204467,1713807038719,-167.191503,0.00020373,2]
[323204469,1713807038729,-420.0,0.00020396,2]
[323204471,1713807038738,-2000.0,0.00020443,2]
[323204473,1713807038746,-549.48258406,0.00020541,2]
[323204474,1713807038756,-203.80378127,0.00020541,2]
[323204475,1713807038765,-1677.7484332,0.00020541,2]
[323204477,1713807038774,-409962.83882736,0.00020542,2]
[323204478,1713807038783,-63477.77613019,0.00020543,2]
[323204479,1713807038793,-39611.3040527,0.00020544,2]
[323204480,1713807038802,-420.0,0.00020577,2]
[323204481,1713807038812,-7923.63328793,0.00021,2]
[323204482,1713807038822,-569.58954947,0.00021774,7]
[323204483,1713807038831,-233.5797442,0.00021774,2]
[323204484,1713807038841,-202.58387251,0.00022181,2]
[323204485,1713807038850,-300.0,0.00022238,2]
[323204486,1713807038860,-587.0,0.00022634,2]
[323204487,1713807038869,-507.71883192,0.00023788,2]
[323204488,1713807038879,-6949.04717444,0.000241,2]
[323204489,1713807038888,-5000.0,0.000245,2]
[323204490,1713807038897,-823.0,0.00024898,2]
[323204491,1713807038906,-157.23828164,0.00025,2]
[323204492,1713807038916,-692.61042729,0.00026,2]
[323204493,1713807038925,-3445.93855522,0.000265,9]
[323204494,1713807038934,-154.86062544,0.00027,2]
[323204495,1713807038943,-637.98117757,0.00027,20]
[323204496,1713807038952,-1152.0,0.00027387,2]
[323204497,1713807038961,-172.5,0.00027397,2]
[323204498,1713807038970,-166.666666,0.00027397,2]
[323204499,1713807038979,-1000.0,0.00027397,2]
[323204500,1713807038988,-801.79803207,0.000275,17]
[323204501,1713807038998,-220.76868482,0.00028,2]
[323204502,1713807039007,-166.666666,0.00028038,2]
[323204503,1713807039016,-166.666666,0.00028679,2]
[323204504,1713807039026,-166.666666,0.00029321,2]
[323204505,1713807039038,-166.666666,0.00029962,2]
[323204506,1713807039046,-154.86062544,0.0003,4]
[323204507,1713807039055,-320.898431,0.0003,30]
[323204508,1713807039065,-154.86062544,0.0003,4]
[323204509,1713807039074,-166.666666,0.0003,2]
[323204510,1713807039083,-262.0,0.0003,2]
[323204511,1713807039092,-1613.0,0.00030126,2]
[323204512,1713807039102,-166.666666,0.00030603,2]
[323204513,1713807039111,-276.92563924,0.00031644,4]
[323204514,1713807039120,-276.92563924,0.00031644,4]
[323204515,1713807039129,-276.92563924,0.00031644,4]
[323204516,1713807039138,-4504.372929,0.00031775,2]
[323204517,1713807039146,-191.40398273,0.00032,4]
[323204518,1713807039155,-2258.0,0.00033139,2]
[323204519,1713807039164,-172.5,0.00033165,2]
[323204520,1713807039173,-4504.372929,0.00033489,7]
[323204521,1713807039182,-153.39334631,0.00033999,2]
[323204522,1713807039191,-465.92917544,0.00034,4]
[323204523,1713807039200,-203.2688012,0.00034196,2]
[323204524,1713807039209,-150.0,0.00034999,2]
[323204525,1713807039218,-853.57953077,0.00035,2]
[323204526,1713807039228,-214.38520539,0.00035,4]
[323204527,1713807039237,-5312.69548551,0.00035,4]
[323204528,1713807039247,-6882.79997042,0.00035,4]
[323204529,1713807039256,-208805.94436256,0.00035,30]
[323204530,1713807039266,-4504.372929,0.00035202,14]
[323204531,1713807039275,-1601.433688,0.00035616,120]
[323204532,1713807039286,-32642.88,0.00035616,3]
[323204533,1713807039297,-154.86062544,0.0003589,2]
[323204534,1713807039306,-1412.0,0.00036453,2]
[323204535,1713807039316,-4504.372929,0.00036916,20]
[323204536,1713807039325,-2924.81959822,0.00037,2]
[323204537,1713807039335,-150.0,0.000375,32]
[323204538,1713807039346,-4504.372929,0.0003863,26]
[323204539,1713807039359,-172.5,0.00038933,2]
[323204540,1713807039373,-155.0117291,0.00039999,4]
[323204541,1713807039382,-1492.7918435,0.0004,7]
[323204542,1713807039391,-201.82400002,0.0004,2]
[323204543,1713807039401,-4504.372929,0.00040343,33]
[323204544,1713807039410,-858.0,0.00041154,30]
[323204545,1713807039419,-1601.433688,0.00041553,120]
[323204546,1713807039428,-243.72205112,0.00042054,30]
[323204547,1713807039437,-4504.372929,0.00042057,39]
[323204548,1713807039446,-150.0,0.00043056,60]
[323204549,1713807039455,-1546.68780373,0.000432,4]
[323204550,1713807039465,-858.0,0.0004332,30]
[323204551,1713807039474,-4504.372929,0.00043771,45]
[323204553,1713807039483,-172.5,0.00044701,2]
[323204554,1713807039492,-611985.3522,0.00045,2]
[323204555,1713807039501,-2690.14344575,0.00045,120]
[323204557,1713807039510,-10000.0,0.00045,60]
[323204558,1713807039519,-4504.372929,0.00045484,52]
[323204560,1713807039528,-475.71481818,0.00045597,4]
[323204562,1713807039540,-858.0,0.000456,30]
[323204563,1713807039548,-858.0,0.000456,30]
[323204564,1713807039557,-154.86062544,0.000459,4]
[323204565,1713807039566,-2205.57,0.000462,6]
[323204566,1713807039575,-30000.0,0.0004648,30]
[323204567,1713807039585,-11504.787,0.000465,75]
[323204568,1713807039594,-400.0,0.00046575,30]
[323204569,1713807039604,-500.0,0.00046848,12]
[323204570,1713807039613,-6168.0,0.000469,10]
[323204571,1713807039624,-6168.0,0.000469,10]
[323204572,1713807039632,-6168.0,0.000469,10]
[323204573,1713807039641,-6168.0,0.000469,10]
[323204574,1713807039654,-2487.24,0.000469,10]
[323204576,1713807039665,-654.40658818,0.00047056,120]
[323204577,1713807039674,-44444.0,0.00047198,5]
[323204578,1713807039684,-4504.372929,0.00047198,58]
[323204579,1713807039693,-1601.433688,0.00047489,120]
[323204580,1713807039702,-154.86062544,0.0004752,4]
[323204581,1713807039713,-1989.04599205,0.0004788,30]
[323204582,1713807039722,-222.67239504,0.0004788,120]
[323204584,1713807039732,-438.0,0.0004797,35]
[323204585,1713807039742,-229.0,0.0004797,35]
[323204586,1713807039751,-438.0,0.0004798,35]
[323204587,1713807039761,-229.0,0.0004798,35]
[323204588,1713807039771,-1549.87348817,0.00047985,4]
[323204589,1713807039780,-438.0,0.0004799,35]
[323204590,1713807039791,-229.0,0.0004799,35]
[323204591,1713807039800,-159.14507717,0.00047994,4]
[323204592,1713807039810,-206.03692384,0.00047995,4]
[323204593,1713807039819,-328.82194226,0.00047995,4]
[323204594,1713807039828,-1489.48629134,0.00047995,4]
[323204595,1713807039838,-211.94923146,0.00047995,4]
[323204596,1713807039846,-270.85027,0.00047995,4]
[323204597,1713807039855,-565.32335955,0.00047995,4]
[323204598,1713807039864,-155.26048682,0.00047995,4]
[323204599,1713807039873,-400.0,0.00047996,2]
[323204600,1713807039883,-1545.99483131,0.00047997,4]
[323204601,1713807039893,-998.71782954,0.00047997,4]
[323204602,1713807039904,-404.69978516,0.00047997,4]
[323204603,1713807039914,-813.22963008,0.00047997,4]
[323204604,1713807039924,-626.53943599,0.00047997,4]
[323204605,1713807039934,-1713.93623245,0.00047997,4]
[323204606,1713807039943,-209.48139927,0.00047997,4]
[323204607,1713807039954,-155.1561478,0.00047997,4]
[323204608,1713807039964,-282.92215931,0.00047997,4]
[323204609,1713807039975,-205.8725987,0.00047997,4]
[323204610,1713807039985,-243.86030291,0.00047997,4]
[323204611,1713807039994,-329.44588054,0.00047997,4]
[323204612,1713807040004,-3341.530844,0.00047997,4]
[323204613,1713807040013,-220.18651929,0.00047997,4]
[323204614,1713807040022,-241.49433096,0.00047997,4]
[323204615,1713807040034,-362.21740336,0.00047997,4]
[323204616,1713807040043,-24153.63852002,0.00047997,4]
[323204617,1713807040053,-471.31782646,0.00047997,4]
[323204618,1713807040062,-500.74026941,0.00047997,4]
[323204619,1713807040071,-468.09250976,0.00047997,4]
[323204620,1713807040080,-576.46157834,0.00047997,4]
[323204621,1713807040089,-161.84978394,0.00047997,4]
[323204622,1713807040098,-505.04671701,0.00047997,4]
[323204623,1713807040108,-161.79553901,0.00047997,4]
[323204624,1713807040117,-155.25328064,0.00047997,4]
[323204625,1713807040126,-408.64389017,0.00047997,4]
[323204626,1713807040135,-595.85174877,0.00047997,4]
[323204627,1713807040144,-346.45948439,0.00047997,4]
[323204628,1713807040153,-2621.60857679,0.00047998,4]
[323204629,1713807040162,-2586.33645302,0.00047998,4]
[323204630,1713807040171,-156.5247691,0.00047998,4]
[323204631,1713807040181,-324.58180862,0.00047999,120]
[323204632,1713807040190,-370.23728431,0.00047999,120]
[323204633,1713807040199,-468681.00975347,0.00048,120]
[323204634,1713807040320,-133870.48488429,0.00048,120]
[323204635,1713807040329,-31126.07689079,0.00048,30]
[323204636,1713807040338,-218.56298078,0.00048,4]
[323204637,1713807040347,-154.86062544,0.00048,15]
[323204638,1713807040357,-200.0,0.00048,2]
[323204639,1713807040366,-1451.48248425,0.00048,4]
[323204640,1713807040376,-16000.6530909,0.00048,2]
[323204641,1713807040385,-1000.0,0.00048,2]
[323204642,1713807040394,-692.32460852,0.00048,4]
[323204643,1713807040404,-154.86062544,0.00048,4]
[323204644,1713807040413,-155.05003757,0.00048,4]
[323204645,1713807040422,-3057.42722378,0.00048,4]
[323204646,1713807040432,-858.0,0.00048,30]
[323204647,1713807040441,-158.0083576,0.00048,68]
[323204648,1713807040450,-337.72259304,0.00048,120]
[323204649,1713807040460,-500.0,0.00048,14]
[323204650,1713807040469,-858.0,0.00048,30]
[323204651,1713807040478,-1727.21817169,0.00048165,2]
[323204652,1713807040488,-1000.0,0.00048261,20]
[323204653,1713807040497,-300.0,0.00048339,7]
[323204654,1713807040507,-150.0,0.00048896,60]
[323204655,1713807040517,-150.0,0.00048945,60]
[323204656,1713807040527,-150.0,0.00048997,60]
[323204657,1713807040538,-5784.39473182,0.00049,120]
[323204658,1713807040547,-3073.76506,0.00049,30]
[323204659,1713807040556,-88676.22473302,0.00049,30]
[323204660,1713807040571,-16242.70219432,0.00049,30]
[323204661,1713807040580,-156.0,0.00049,2]
[323204662,1713807040590,-37029.65175018,0.000492,2]
[323204663,1713807040600,-1000.0,0.000495,2]
[323204664,1713807040609,-1000.0,0.000497,120]
[323204665,1713807040623,-103532.43468484,0.0004977,120]
[323204666,1713807040632,-154.86062544,0.0005,30]
[323204667,1713807040642,-8536.05857705,0.0005,120]
[323204668,1713807040652,-237.35668423,0.0005,60]
[323204669,1713807040662,-9511.2089,0.0005,60]
[323204670,1713807040672,-2012.75256685,0.0005,30]
[323204671,1713807040681,-1762.25790222,0.0005,20]
[323204672,1713807040691,-567.08435092,0.0005,7]
[323204673,1713807040699,-10000.0,0.0005,15]
[323204674,1713807040709,-151.0,0.0005,120]
[323204675,1713807040719,-206.92091352,0.0005,20]
[323204676,1713807040729,-509.9071836,0.0005,10]
[323204677,1713807040738,-2300.0,0.0005,120]
[323204678,1713807040748,-519.15,0.0005,7]
[323204679,1713807040757,-500.0,0.0005,7]
[323204680,1713807040767,-202.3030984,0.0005,120]
[323204681,1713807040776,-2053.0,0.0005,120]
[323204682,1713807040787,-253.14668786,0.0005,120]
[323204683,1713807040797,-958.17412566,0.0005,60]
[323204684,1713807040806,-17443.52839221,0.0005,120]
[323204685,1713807040816,-256.32313805,0.0005,2]
[323204686,1713807040825,-11094.4222461,0.0005,30]
[323204687,1713807040835,-150.0,0.000503,30]
[323204688,1713807040844,-858.0,0.000504,30]
[323204689,1713807040853,-648.0,0.000504,30]
[323204690,1713807040863,-637.5,0.00050469,2]
[323204691,1713807040872,-172.5,0.00050469,2]
[323204692,1713807040882,-1000.0,0.000506,30]
[323204693,1713807040891,-2000.0,0.00051,120]
[323204694,1713807040900,-3000.0,0.00051,85]
[323204695,1713807040909,-3000.0,0.0005101,85]
[323204696,1713807040919,-3000.0,0.0005102,85]
[323204697,1713807040928,-3000.0,0.0005103,85]
[323204698,1713807040937,-309.8323794,0.0005104,85]
[323204752,1713807043497,-673.42380373,0.00018702,2]
[323204753,1713807043507,-2098.29373442,0.00018704,2]
[323204754,1713807043517,-31291.27918784,0.00018705,2]
[323204755,1713807043526,-419.39507495,0.000195,2]
[323204756,1713807043537,-277.93550668,0.0002,2]
[323204757,1713807043547,-2690.1676206,0.0005104,85]
[323204758,1713807043556,-3000.0,0.0005105,85]
[323204760,1713807043566,-3000.0,0.0005106,85]
[323204761,1713807043575,-5930.61948,0.0005107,85]
[323204762,1713807043584,-166.666666,0.00051397,2]
[323204763,1713807043593,-168.75,0.0005175,2]
[323204764,1713807043603,-97372.44160875,0.000518,30]
[323204873,1713808232473,-577.70448141,0.00015341,2]
[323204874,1713808232485,-124.11008368,0.00015341,2]
[323204875,1713808232494,-564.41327959,0.00015341,2]
[323204876,1713808232503,-154.82968734,0.00015342,2]
[323204877,1713808232513,-206.02600307,0.00015343,2]
[323204878,1713808232522,-154.82968734,0.00015343,2]
[323204879,1713808232532,-1877.77097996,0.00015343,2]
[323204880,1713808232541,-1577.66906822,0.00015344,2]
[323204881,1713808232551,-1550.48057045,0.00015344,2]
[323204882,1713808232561,-720.00689258,0.00015345,2]
[323204884,1713808232570,-212.02643912,0.00015345,2]
[323204886,1713808232580,-2026.4732867,0.00015346,2]
[323204888,1713808232590,-300.0,0.00016339,2]
[323204890,1713808232599,-883.60999796,0.0001634,2]
[323204892,1713808232608,-2623.48627296,0.0001634,2]
[323204894,1713808232617,-300.0,0.0001634,2]
[323204896,1713808232627,-471.74403626,0.00016341,2]
[323204898,1713808232636,-927.5718807,0.00016341,2]
[323204900,1713808232645,-2099.05646455,0.00016341,2]
[323204902,1713808232654,-329.57107256,0.00016341,2]
[323204904,1713808232663,-808.31234139,0.00016341,2]
[323204906,1713808232672,-161.99063186,0.00016341,2]
[323204908,1713808232682,-2587.27470458,0.00016341,2]
[323204910,1713808232691,-57001.78032584,0.00016347,2]
[323204982,1713808238445,-72546.85153724,0.0001634,2]
[323204985,1713808238457,-352961.05850152,0.00016347,2]
[323204987,1713808238466,-735.14795099,0.00016358,2]
[323204989,1713808238476,-24900.0,0.00016463,2]
[323204991,1713808238485,-272.52388449,0.000165,2]
[323204993,1713808238495,-420.0,0.00017858,2]
[323204995,1713808238504,-420.0,0.00017974,2]
[323204997,1713808238514,-603.23240406,0.000185,2]
[323204999,1713808238524,-1249.36108383,0.00018587,2]
[323205001,1713808238534,-188.78745648,0.00018605,2]
[323205002,1713808238543,-3841.57304076,0.00018608,2]
[323205005,1713808238552,-500.0,0.00019178,2]
[323205007,1713808238562,-500.0,0.00019178,2]
[323205008,1713808238573,-500.0,0.00019178,2]
[323205010,1713808238583,-500.0,0.00019178,2]
[323205013,1713808238594,-533.22480529,0.00019178,2]
[323205015,1713808238605,-500.0,0.00019178,2]
[323205016,1713808238616,-500.0,0.00019178,2]
[323205018,1713808238627,-430.40649605,0.00019178,2]